fUST/lending_fUST_20250304
["ID","MTS","AMOUNT","RATE_DAILY","PERIOD"]
[355220678,1741024244741,-500.0,0.00022562,2]
[355220680,1741024244750,-694.63,0.00022562,2]
[355220682,1741024244760,-502.51264786,0.00022562,2]
[355220684,1741024244770,-500.0,0.00022562,2]
[355220686,1741024244779,-500.0,0.00022563,2]
[355220688,1741024244789,-507.12271437,0.00022563,2]
[355220690,1741024244798,-500.0,0.00022563,2]
[355220692,1741024244808,-500.0,0.00022563,2]
[355220694,1741024244818,-505.86378254,0.00022563,2]
[355220696,1741024244827,-500.0,0.00022563,2]
[355220698,1741024244837,-500.0,0.00022563,2]
[355220700,1741024244846,-500.0,0.00022563,2]
[355220702,1741024244856,-501.41801439,0.00022563,2]
[355220704,1741024244865,-500.0,0.00022563,2]
[355220706,1741024244877,-500.0,0.00022563,2]
[355220708,1741024244888,-500.0,0.00022563,2]
[355220710,1741024244898,-500.0,0.00022563,2]
[355220713,1741024244908,-500.0,0.00022563,2]
[355220714,1741024244917,-500.0,0.00022563,2]
[355220717,1741024244927,-501.2694234,0.00022563,2]
[355220719,1741024244937,-503.33602084,0.00022563,2]
[355220721,1741024244946,-501.0578493,0.00022563,2]
[355220723,1741024244956,-500.0,0.00022563,2]
[355220725,1741024244966,-500.0,0.00022563,2]
[355220727,1741024244976,-153.715896,0.00022563,7]
[355220729,1741024244985,-500.0,0.00022563,2]
[355220731,1741024244995,-500.0,0.00022563,2]
[355220733,1741024245005,-500.0,0.00022563,2]
[355220735,1741024245015,-502.46710506,0.00022563,2]
[355220737,1741024245024,-191.641704,0.00022563,7]
[355220739,1741024245033,-191.641704,0.00022563,7]
[355220741,1741024245043,-191.641704,0.00022563,7]
[355220743,1741024245052,-191.641704,0.00022563,7]
[355220745,1741024245062,-191.641704,0.00022563,7]
[355220747,1741024245071,-191.641704,0.00022563,7]
[355220749,1741024245081,-191.641704,0.00022563,7]
[355220750,1741024245091,-191.641704,0.00022563,7]
[355220753,1741024245102,-500.0,0.00022563,2]
[355220755,1741024245112,-500.0,0.00022563,2]
[355220757,1741024245124,-500.0,0.00022563,2]
[355220759,1741024245134,-500.0,0.00022563,2]
[355220761,1741024245143,-500.0,0.00022563,2]
[355220763,1741024245152,-220.463912,0.00022563,7]
[355220764,1741024245162,-500.0,0.00022563,2]
[355220766,1741024245173,-590.68965374,0.00022563,2]
[355220769,1741024245183,-506.44112058,0.00022563,2]
[355220771,1741024245193,-216.369786,0.00022563,7]
[355220772,1741024245203,-216.369786,0.00022563,7]
[355220775,1741024245213,-216.369786,0.00022563,7]
[355220777,1741024245223,-216.369786,0.00022563,7]
[355220778,1741024245233,-216.369786,0.00022563,7]
[355220780,1741024245243,-216.369786,0.00022563,7]
[355220782,1741024245254,-500.0,0.00022563,2]
[355220785,1741024245264,-500.0,0.00022563,2]
[355220787,1741024245276,-502.34639093,0.00022563,2]
[355220789,1741024245286,-500.0,0.00022563,2]
[355220791,1741024245297,-500.0,0.00022563,2]
[355220793,1741024245306,-500.0,0.00022563,2]
[355220794,1741024245319,-164.18520922,0.00022563,2]
[355220796,1741024245329,-500.0,0.00022563,2]
[355220798,1741024245339,-500.0,0.00022563,2]
[355220800,1741024245349,-1714.28,0.00022563,2]
[355220803,1741024245358,-151.0,0.00022563,7]
[355220804,1741024245368,-151.0,0.00022563,7]
[355220807,1741024245379,-151.0,0.00022563,7]
[355220809,1741024245389,-500.0,0.00022563,2]
[355220811,1741024245399,-500.0,0.00022563,2]
[355220813,1741024245409,-500.0,0.00022563,2]
[355220814,1741024245418,-500.0,0.00022563,2]
[355220816,1741024245427,-500.0,0.00022563,2]
[355220817,1741024245437,-500.0,0.00022563,2]
[355220818,1741024245446,-1455.75,0.00022563,2]
[355220819,1741024245456,-590.4,0.00022563,2]
[355220820,1741024245467,-501.78900079,0.00022563,2]
[355220821,1741024245477,-504.2212504,0.00022563,2]
[355220822,1741024245487,-500.83049222,0.00022563,2]
[355220823,1741024245496,-500.0,0.00022563,2]
[355220824,1741024245506,-500.0,0.00022563,2]
[355220825,1741024245515,-500.0,0.00022564,2]
[355220826,1741024245525,-463.18876942,0.00022564,2]
[355220827,1741024245535,-500.0,0.00022564,2]
[355220828,1741024245544,-500.0,0.00022564,2]
[355220829,1741024245554,-467.40848476,0.00022564,2]
[355220830,1741024245564,-500.0,0.00022564,2]
[355220831,1741024245573,-500.0,0.00022564,2]
[355220832,1741024245583,-506.94281823,0.00022564,2]
[355220833,1741024245593,-500.0,0.00022564,2]
[355220834,1741024245603,-500.0,0.00022564,2]
[355220835,1741024245613,-293.11866796,0.00022564,2]
[355220836,1741024245625,-500.0,0.00022564,2]
[355220837,1741024245635,-500.0,0.00022564,2]
[355220839,1741024245644,-500.0,0.00022564,2]
[355220840,1741024245654,-500.0,0.00022564,2]
[355220842,1741024245664,-500.0,0.00022564,2]
[355220844,1741024245675,-224.20510796,0.00022564,2]
[355220846,1741024245685,-500.0,0.00022564,2]
[355220848,1741024245696,-250.0,0.00022564,2]
[355220850,1741024245706,-1164.04,0.00022564,2]
[355220852,1741024245717,-514.12472424,0.00022564,2]
[355220854,1741024245727,-517.96656727,0.00022564,2]
[355220856,1741024245736,-500.0,0.00022564,2]
[355220858,1741024245746,-500.0,0.00022564,2]
[355220860,1741024245756,-508.48975147,0.00022564,2]
[355220862,1741024245765,-514.14494226,0.00022564,2]
[355220864,1741024245774,-500.0,0.00022564,2]
[355220866,1741024245784,-500.0,0.00022564,2]
[355220868,1741024245793,-507.90583032,0.00022564,2]
[355220870,1741024245803,-507.21359382,0.00022564,2]
[355220872,1741024245812,-500.0,0.00022564,2]
[355220874,1741024245821,-500.0,0.00022564,2]
[355220876,1741024245831,-511.51299327,0.00022564,2]
[355220878,1741024245840,-500.0,0.00022564,2]
[355220880,1741024245850,-500.0,0.00022564,2]
[355220882,1741024245859,-500.0,0.00022564,2]
[355220884,1741024245868,-505.29105891,0.00022564,2]
[355220886,1741024245878,-845.62,0.00022564,2]
[355220888,1741024245888,-502.98444527,0.00022564,2]
[355220891,1741024245897,-509.08241954,0.00022564,2]
[355220893,1741024245906,-208.904446,0.00022564,7]
[355220895,1741024245916,-500.0,0.00022564,2]
[355220897,1741024245925,-503.72699457,0.00022564,2]
[355220899,1741024245935,-500.0,0.00022564,2]
[355220901,1741024245944,-500.0,0.00022564,2]
[355220903,1741024245953,-336.45590207,0.00022564,2]
[355220905,1741024245962,-500.0,0.00022564,2]
[355220907,1741024245972,-500.0,0.00022564,2]
[355220919,1741024246068,-151.0,0.00022564,7]
[355220923,1741024246092,-151.0,0.00022564,7]
[355220925,1741024246102,-500.0,0.00022564,2]
[355220927,1741024246111,-500.0,0.00022564,2]
[355220929,1741024246123,-503.87304411,0.00022564,2]
[355220931,1741024246133,-500.0,0.00022564,2]
[355220934,1741024246144,-500.0,0.00022564,2]
[355220936,1741024246153,-500.0,0.00022564,2]
[355220938,1741024246163,-500.0,0.00022564,2]
[355220940,1741024246172,-500.0,0.00022564,2]
[355220942,1741024246182,-500.0,0.00022564,2]
[355220944,1741024246191,-500.0,0.00022564,2]
[355220946,1741024246201,-151.0,0.00022564,7]
[355220948,1741024246211,-151.0,0.00022564,7]
[355220950,1741024246221,-502.02975623,0.00022564,2]
[355220953,1741024246231,-500.0,0.00022564,2]
[355220956,1741024246240,-500.0,0.00022564,2]
[355220959,1741024246250,-500.0,0.00022564,2]
[355220962,1741024246259,-500.0,0.00022564,2]
[355220964,1741024246269,-500.0,0.00022564,2]
[355220966,1741024246281,-500.0,0.00022564,2]
[355220968,1741024246291,-510.34567028,0.00022564,2]
[355220970,1741024246300,-500.0,0.00022564,2]
[355220973,1741024246311,-501.86680847,0.00022564,2]
[355220975,1741024246325,-500.0,0.00022564,2]
[355220977,1741024246335,-500.0,0.00022564,2]
[355220979,1741024246344,-500.0,0.00022564,2]
[355220982,1741024246354,-500.0,0.00022564,2]
[355220985,1741024246364,-501.36945151,0.00022564,2]
[355220988,1741024246377,-500.0,0.00022564,2]
[355220989,1741024246387,-1000.57343345,0.00022564,10]
[355220991,1741024246398,-500.0,0.00022564,2]
[355220993,1741024246408,-501.12691094,0.00022564,2]
[355220995,1741024246419,-500.0,0.00022564,2]
[355220998,1741024246430,-500.0,0.00022564,2]
[355221000,1741024246440,-500.0,0.00022564,2]
[355221002,1741024246450,-500.0,0.00022564,2]
[355221004,1741024246460,-500.0,0.00022564,2]
[355221005,1741024246469,-151.0,0.00022564,7]
[355221008,1741024246479,-151.0,0.00022564,7]
[355221010,1741024246489,-500.0,0.00022564,2]
[355221012,1741024246498,-151.0,0.00022564,7]
[355221014,1741024246508,-151.0,0.00022564,7]
[355221016,1741024246518,-151.0,0.00022564,7]
[355221017,1741024246528,-500.0,0.00022564,2]
[355221020,1741024246538,-393.91954713,0.00022564,2]
[355221022,1741024246547,-500.0,0.00022564,2]
[355221024,1741024246557,-500.0,0.00022564,2]
[355221026,1741024246566,-500.0,0.00022564,2]
[355221028,1741024246576,-184.420409,0.00022564,7]
[355221030,1741024246585,-500.0,0.00022564,2]
[355221032,1741024246595,-502.81263515,0.00022564,2]
[355221034,1741024246605,-505.27235742,0.00022564,2]
[355221036,1741024246614,-502.13448407,0.00022564,2]
[355221038,1741024246628,-500.0,0.00022564,2]
[355221040,1741024246639,-500.0,0.00022564,2]
[355221042,1741024246649,-500.0,0.00022564,2]
[355221044,1741024246660,-501.64197316,0.00022564,2]
[355221046,1741024246670,-280.50251963,0.00022564,2]
[355221048,1741024246680,-500.0,0.00022564,2]
[355221050,1741024246689,-500.0,0.00022564,2]
[355221052,1741024246699,-151.0,0.00022564,7]
[355221054,1741024246709,-151.0,0.00022564,7]
[355221056,1741024246719,-500.0,0.00022564,2]
[355221058,1741024246727,-151.0,0.00022564,7]
[355221060,1741024246737,-151.0,0.00022564,7]
[355221062,1741024246746,-500.0,0.00022564,2]
[355221064,1741024246755,-501.34808753,0.00022564,2]
[355221066,1741024246765,-500.0,0.00022564,2]
[355221068,1741024246774,-501.39057172,0.00022564,2]
[355221070,1741024246784,-500.0,0.00022564,2]
[355221072,1741024246793,-500.0,0.00022564,2]
[355221074,1741024246803,-500.0,0.00022564,2]
[355221076,1741024246812,-500.0,0.00022564,2]
[355221078,1741024246822,-500.0,0.00022564,2]
[355221080,1741024246831,-645.16634751,0.00022564,2]
[355221082,1741024246840,-500.0,0.00022564,2]
[355221084,1741024246850,-501.63489466,0.00022564,2]
[355221086,1741024246860,-500.0,0.00022564,2]
[355221088,1741024246872,-500.0,0.00022564,2]
[355221090,1741024246881,-500.0,0.00022564,2]
[355221093,1741024246890,-500.0,0.00022564,2]
[355221095,1741024246900,-500.0,0.00022564,2]
[355221097,1741024246910,-294.81283306,0.00022564,2]
[355221099,1741024246919,-500.0,0.00022564,2]
[355221101,1741024246928,-500.0,0.00022564,2]
[355221103,1741024246938,-500.0,0.00022564,2]
[355221106,1741024246948,-501.40532489,0.00022564,2]
[355221109,1741024246957,-291.00221181,0.00022564,2]
[355221112,1741024246968,-500.0,0.00022564,2]
[355221114,1741024246977,-500.0,0.00022564,2]
[355221116,1741024246987,-500.0,0.00022564,2]
[355221118,1741024246997,-501.66114188,0.00022564,2]
[355221120,1741024247007,-500.0,0.00022564,2]
[355221122,1741024247017,-500.0,0.00022564,2]
[355221124,1741024247027,-500.0,0.00022564,2]
[355221126,1741024247038,-505.11681695,0.00022564,2]
[355221128,1741024247047,-501.22508256,0.00022564,2]
[355221130,1741024247057,-500.0,0.00022564,2]
[355221132,1741024247066,-500.0,0.00022564,2]
[355221134,1741024247076,-500.0,0.00022564,2]
[355221136,1741024247086,-604.05172731,0.00022564,2]
[355221138,1741024247095,-500.0,0.00022564,2]
[355221140,1741024247105,-500.0,0.00022564,2]
[355221142,1741024247114,-500.0,0.00022564,2]
[355221144,1741024247126,-500.0,0.00022564,2]
[355221146,1741024247136,-690.3,0.00022564,2]
[355221148,1741024247145,-502.4953351,0.00022564,2]
[355221150,1741024247155,-508.69043399,0.00022564,2]
[355221152,1741024247164,-500.0,0.00022564,2]
[355221154,1741024247174,-500.0,0.00022564,2]
[355221156,1741024247184,-500.0,0.00022564,2]
[355221159,1741024247193,-500.0,0.00022564,2]
[355221161,1741024247203,-506.4937545,0.00022564,2]
[355221162,1741024247212,-500.0,0.00022564,2]
[355221164,1741024247222,-500.0,0.00022564,2]
[355221167,1741024247232,-500.0,0.00022564,2]
[355221169,1741024247242,-1000.0,0.00022564,2]
[355221171,1741024247251,-500.0,0.00022564,2]
[355221173,1741024247262,-500.0,0.00022564,2]
[355221175,1741024247271,-500.0,0.00022564,2]
[355221176,1741024247282,-500.0,0.00022564,2]
[355221179,1741024247292,-502.99478747,0.00022564,2]
[355221181,1741024247301,-500.0,0.00022564,2]
[355221183,1741024247312,-191.641704,0.00022564,7]
[355221185,1741024247325,-500.0,0.00022564,2]
[355221187,1741024247335,-191.641714,0.00022564,7]
[355221189,1741024247344,-500.0,0.00022564,2]
[355221191,1741024247354,-502.67217593,0.00022564,2]
[355221193,1741024247364,-500.0,0.00022564,2]
[355221195,1741024247375,-500.0,0.00022564,2]
[355221196,1741024247385,-500.0,0.00022564,2]
[355221198,1741024247395,-500.0,0.00022564,2]
[355221200,1741024247404,-500.0,0.00022564,2]
[355221202,1741024247414,-506.45072332,0.00022564,2]
[355221204,1741024247424,-500.0,0.00022564,2]
[355221206,1741024247434,-503.99085523,0.00022564,2]
[355221208,1741024247445,-500.0,0.00022564,2]
[355221210,1741024247454,-500.0,0.00022564,2]
[355221212,1741024247463,-464.79411392,0.00022564,2]
[355221214,1741024247473,-500.0,0.00022564,2]
[355221216,1741024247483,-501.98758039,0.00022564,2]
[355221219,1741024247493,-500.0,0.00022564,2]
[355221221,1741024247503,-500.0,0.00022564,2]
[355221223,1741024247513,-500.0,0.00022564,2]
[355221225,1741024247525,-500.0,0.00022564,2]
[355221227,1741024247534,-500.0,0.00022564,2]
[355221229,1741024247543,-500.0,0.00022564,2]
[355221231,1741024247553,-500.0,0.00022564,2]
[355221233,1741024247562,-500.0,0.00022564,2]
[355221235,1741024247572,-500.0,0.00022564,2]
[355221237,1741024247582,-500.0,0.00022564,2]
[355221239,1741024247591,-501.59874208,0.00022564,2]
[355221241,1741024247601,-521.31873221,0.00022564,2]
[355221243,1741024247611,-500.0,0.00022564,2]
[355221245,1741024247623,-500.0,0.00022564,2]
[355221246,1741024247632,-501.28765747,0.00022564,2]
[355221249,1741024247642,-500.0,0.00022564,2]
[355221250,1741024247652,-500.0,0.00022564,2]
[355221253,1741024247662,-500.0,0.00022564,2]
[355221254,1741024247671,-500.0,0.00022564,2]
[355221256,1741024247681,-500.0,0.00022564,2]
[355221258,1741024247691,-500.0,0.00022564,2]
[355221260,1741024247700,-500.0,0.00022564,2]
[355221263,1741024247710,-500.0,0.00022564,2]
[355221265,1741024247719,-500.0,0.00022564,2]
[355221267,1741024247729,-500.0,0.00022564,2]
[355221268,1741024247738,-216.369786,0.00022564,7]
[355221270,1741024247748,-1218.88,0.00022564,2]
[355221272,1741024247758,-216.369786,0.00022564,7]
[355221274,1741024247768,-500.0,0.00022564,2]
[355221277,1741024247779,-216.369786,0.00022564,7]
[355221279,1741024247788,-216.36979106,0.00022564,7]
[355221281,1741024247798,-500.0,0.00022564,2]
[355221283,1741024247808,-510.70290759,0.00022564,2]
[355221285,1741024247817,-501.95024305,0.00022564,2]
[355221287,1741024247827,-503.42971862,0.00022564,2]
[355221289,1741024247836,-500.0,0.00022564,2]
[355221291,1741024247847,-500.0,0.00022564,2]
[355221304,1741024247946,-500.0,0.00022564,2]
[355221306,1741024247970,-500.0,0.00022564,2]
[355221308,1741024247980,-500.0,0.00022564,2]
[355221310,1741024247989,-500.0,0.00022564,2]
[355221312,1741024247999,-500.0,0.00022564,2]
[355221314,1741024248009,-500.0,0.00022564,2]
[355221316,1741024248018,-500.0,0.00022564,2]
[355221318,1741024248028,-500.0,0.00022564,2]
[355221320,1741024248037,-500.0,0.00022564,2]
[355221322,1741024248049,-503.64245501,0.00022564,2]
[355221324,1741024248059,-500.0,0.00022564,2]
[355221326,1741024248068,-500.54481912,0.00022564,2]
[355221327,1741024248078,-500.0,0.00022564,2]
[355221330,1741024248088,-500.0,0.00022564,2]
[355221332,1741024248098,-444.91354078,0.00022564,2]
[355221334,1741024248108,-500.0,0.00022564,2]
[355221336,1741024248118,-500.0,0.00022564,2]
[355221338,1741024248128,-500.0,0.00022564,2]
[355221339,1741024248137,-500.0,0.00022564,2]
[355221342,1741024248148,-500.0,0.00022564,2]
[355221344,1741024248158,-151.0,0.00022564,7]
[355221346,1741024248167,-191.407704,0.00022564,7]
[355221348,1741024248178,-500.0,0.00022564,2]
[355221350,1741024248188,-500.0,0.00022564,2]
[355221352,1741024248198,-500.0,0.00022564,2]
[355221354,1741024248209,-506.8207063,0.00022564,2]
[355221355,1741024248219,-504.99790094,0.00022564,2]
[355221357,1741024248231,-500.0,0.00022564,2]
[355221359,1741024248242,-500.0,0.00022564,2]
[355221361,1741024248254,-500.0,0.00022564,2]
[355221363,1741024248264,-500.0,0.00022564,2]
[355221366,1741024248276,-500.0,0.00022564,2]
[355221367,1741024248286,-500.0,0.00022564,2]
[355221369,1741024248295,-500.0,0.00022564,2]
[355221371,1741024248309,-500.0,0.00022564,2]
[355221373,1741024248322,-175.21914718,0.00022564,2]
[355221376,1741024248332,-500.0,0.00022564,2]
[355221377,1741024248342,-500.0,0.00022564,2]
[355221380,1741024248353,-500.0,0.00022564,2]
[355221381,1741024248363,-150.54,0.00022564,2]
[355221383,1741024248375,-500.0,0.00022564,2]
[355221386,1741024248389,-500.0,0.00022564,2]
[355221388,1741024248399,-500.0,0.00022564,2]
[355221390,1741024248410,-500.0,0.00022564,2]
[355221392,1741024248420,-500.0,0.00022564,2]
[355221394,1741024248430,-500.0,0.00022564,2]
[355221396,1741024248440,-500.0,0.00022564,2]
[355221397,1741024248449,-500.0,0.00022564,2]
[355221399,1741024248459,-500.0,0.00022564,2]
[355221401,1741024248469,-500.0,0.00022564,2]
[355221403,1741024248479,-500.0,0.00022564,2]
[355221405,1741024248489,-500.0,0.00022564,2]
[355221407,1741024248499,-500.0,0.00022564,2]
[355221409,1741024248510,-500.0,0.00022564,2]
[355221411,1741024248520,-503.58684017,0.00022564,2]
[355221413,1741024248529,-501.88356072,0.00022564,2]
[355221415,1741024248539,-500.0,0.00022565,2]
[355221417,1741024248550,-500.0,0.00022565,2]
[355221419,1741024248560,-500.0,0.00022565,2]
[355221421,1741024248571,-500.0,0.00022565,2]
[355221423,1741024248582,-500.0,0.00022565,2]
[355221425,1741024248593,-500.0,0.00022565,2]
[355221427,1741024248604,-500.0,0.00022566,2]
[355221429,1741024248614,-500.0,0.00022566,2]
[355221431,1741024248626,-500.94746082,0.00022566,2]
[355221433,1741024248638,-500.0,0.00022566,2]
[355221435,1741024248649,-597.32905734,0.00022566,2]
[355221437,1741024248660,-500.0,0.00022566,2]
[355221439,1741024248671,-296.49336089,0.00022566,2]
[355221441,1741024248681,-500.0,0.00022566,14]
[355221443,1741024248691,-500.0,0.00022566,2]
[355221445,1741024248701,-151.0,0.00022566,7]
[355221447,1741024248711,-500.0,0.00022566,2]
[355221449,1741024248721,-151.0,0.00022566,7]
[355221451,1741024248730,-506.83682062,0.00022566,2]
[355221453,1741024248740,-500.0,0.00022566,2]
[355221455,1741024248749,-500.0,0.00022566,2]
[355221457,1741024248759,-505.55247006,0.00022566,2]
[355221459,1741024248768,-500.0,0.00022566,2]
[355221461,1741024248779,-500.0,0.00022566,2]
[355221463,1741024248789,-505.02549026,0.00022566,2]
[355221465,1741024248799,-500.0,0.00022566,2]
[355221467,1741024248809,-151.0,0.00022566,7]
[355221469,1741024248819,-505.93305298,0.00022566,2]
[355221471,1741024248829,-500.0,0.00022566,2]
[355221473,1741024248838,-500.0,0.00022566,2]
[355221475,1741024248848,-500.0,0.00022566,2]
[355221477,1741024248857,-505.7584227,0.00022566,2]
[355221479,1741024248868,-766.45,0.00022566,2]
[355221481,1741024248879,-500.0,0.00022566,2]
[355221483,1741024248889,-500.0,0.00022566,2]
[355221485,1741024248899,-500.0,0.00022566,2]
[355221487,1741024248909,-500.0,0.00022566,2]
[355221489,1741024248920,-500.0,0.00022566,2]
[355221491,1741024248929,-500.0,0.00022566,2]
[355221493,1741024248939,-500.0,0.00022566,2]
[355221495,1741024248950,-500.0,0.00022566,2]
[355221496,1741024248960,-537.33974775,0.00022566,2]
[355221497,1741024248970,-500.0,0.00022566,2]
[355221498,1741024248980,-500.0,0.00022566,2]
[355221499,1741024248990,-500.0,0.00022566,2]
[355221500,1741024249000,-646.05,0.00022566,2]
[355221501,1741024249010,-500.0,0.00022566,2]
[355221502,1741024249020,-500.0,0.00022566,2]
[355221503,1741024249030,-500.0,0.00022566,2]
[355221504,1741024249041,-500.0,0.00022566,2]
[355221505,1741024249051,-165.526617,0.00022567,7]
[355221506,1741024249061,-151.0,0.00022567,7]
[355221507,1741024249070,-3000.0,0.00022567,2]
[355221508,1741024249080,-500.0,0.00022573,2]
[355221509,1741024249090,-500.0,0.00022573,2]
[355221510,1741024249099,-500.6890078,0.00022573,2]
[355221511,1741024249109,-500.0,0.00022573,2]
[355221512,1741024249119,-500.0,0.00022573,2]
[355221513,1741024249129,-501.64495843,0.00022573,2]
[355221514,1741024249139,-500.0,0.00022573,2]
[355221516,1741024249148,-500.0,0.00022573,2]
[355221517,1741024249158,-500.0,0.00022573,2]
[355221519,1741024249168,-500.0,0.00022573,2]
[355221521,1741024249179,-500.0,0.00022573,2]
[355221523,1741024249190,-500.0,0.00022573,2]
[355221526,1741024249199,-500.0,0.00022573,2]
[355221528,1741024249209,-500.0,0.00022573,2]
[355221530,1741024249219,-500.0,0.00022573,2]
[355221532,1741024249229,-500.0,0.00022573,2]
[355221534,1741024249239,-500.0,0.00022573,2]
[355221536,1741024249249,-500.0,0.00022573,2]
[355221538,1741024249258,-500.0,0.00022573,2]
[355221540,1741024249268,-151.0,0.000226,5]
[355221542,1741024249280,-151.0,0.000226,5]
[355221544,1741024249289,-153.0,0.000226,2]
[355221546,1741024249298,-1244.05,0.000226,7]
[355221548,1741024249310,-154.9722322,0.000226,2]
[355221550,1741024249322,-153.0,0.000226,2]
[355221552,1741024249332,-461.1316622,0.000226,2]
[355221554,1741024249342,-151.0,0.000226,8]
[355221556,1741024249352,-151.0,0.000226,7]
[355221558,1741024249362,-151.0,0.000226,9]
[355221560,1741024249372,-500.0,0.00022649,2]
[355221562,1741024249383,-500.0,0.00022649,2]
[355221564,1741024249393,-500.0,0.00022663,2]
[355221566,1741024249404,-151.0,0.00022663,7]
[355221568,1741024249416,-500.0,0.00022663,2]
[355221570,1741024249425,-500.0,0.00022663,2]
[355221572,1741024249435,-500.0,0.00022663,2]
[355221574,1741024249444,-500.0,0.00022663,2]
[355221576,1741024249454,-376.44017368,0.00022663,2]
[355221578,1741024249464,-500.0,0.00022663,2]
[355221580,1741024249474,-346.10816355,0.00022664,2]
[355221582,1741024249484,-500.0,0.00022664,2]
[355221584,1741024249494,-500.0,0.00022664,2]
[355221586,1741024249503,-500.0,0.00022664,2]
[355221588,1741024249513,-505.94641089,0.00022664,2]
[355221590,1741024249522,-500.0,0.00022664,2]
[355221592,1741024249532,-500.0,0.00022664,2]
[355221594,1741024249542,-500.0,0.00022664,2]
[355221596,1741024249552,-502.25814093,0.00022664,2]
[355221598,1741024249562,-214.58527304,0.00022664,2]
[355221600,1741024249571,-500.0,0.00022664,2]
[355221602,1741024249581,-511.89531182,0.00022664,2]
[355221604,1741024249590,-506.99634675,0.00022664,2]
[355221606,1741024249600,-500.0,0.00022664,2]
[355221608,1741024249610,-553.76345684,0.00022664,2]
[355221610,1741024249620,-500.0,0.00022664,2]
[355221612,1741024249632,-151.0,0.00022664,7]
[355221624,1741024249739,-153.978836,0.00022664,7]
[355221626,1741024249749,-151.0,0.00022667,7]
[355221628,1741024249759,-14193.496481,0.00022668,10]
[355221630,1741024249769,-500.0,0.00022672,2]
[355221632,1741024249779,-500.0,0.00022672,2]
[355221634,1741024249790,-500.0,0.00022672,2]
[355221636,1741024249799,-462.93212355,0.00022672,2]
[355221638,1741024249809,-500.0,0.00022672,2]
[355221640,1741024249819,-500.0,0.00022672,2]
[355221642,1741024249829,-500.0,0.00022672,2]
[355221644,1741024249838,-500.0,0.00022672,2]
[355221646,1741024249848,-500.0,0.00022672,2]
[355221648,1741024249858,-503.98126436,0.00022672,2]
[355221650,1741024249868,-500.0,0.00022672,2]
[355221652,1741024249880,-500.0,0.00022672,2]
[355221654,1741024249890,-500.0,0.00022672,2]
[355221656,1741024249901,-502.20605589,0.00022672,2]
[355221658,1741024249910,-500.0,0.00022672,2]
[355221660,1741024249920,-500.0,0.00022672,2]
[355221662,1741024249929,-500.0,0.00022672,2]
[355221664,1741024249939,-500.0,0.00022672,2]
[355221666,1741024249949,-500.0,0.00022672,2]
[355221668,1741024249958,-500.0,0.00022672,2]
[355221670,1741024249969,-500.0,0.00022672,2]
[355221672,1741024249978,-500.0,0.00022672,2]
[355221674,1741024249988,-563.63,0.00022672,2]
[355221676,1741024249998,-500.0,0.00022672,2]
[355221678,1741024250008,-500.0,0.00022672,2]
[355221680,1741024250017,-441.79478034,0.00022672,2]
[355221682,1741024250027,-500.0,0.00022672,2]